bitfinex/quotes_SOLUSD_20240821
["timestamp","ask_amount","ask_price","bid_price","bid_amount"]
[1724245259285,27.0639,141.57,141.52,7.066]
[1724245259792,20.0,141.57,141.52,7.066]
[1724245261169,27.0637,141.57,141.51,7.0664]
[1724245261568,40.5137,141.57,141.51,7.0664]
[1724245261875,7.0643,141.56,141.5,30.8776]
[1724245262369,33.45,141.57,141.45,7.0692]
[1724245262370,13.45,141.52,141.45,7.0692]
[1724245262569,20.0,141.51,141.45,7.0692]
[1724245262784,20.0,141.51,141.46,7.069]
[1724245267484,27.0667,141.51,141.45,7.0695]
[1724245268175,20.5162,141.52,141.46,7.069]
[1724245270167,7.0662,141.52,141.46,7.069]
[1724245272489,20.5156,141.54,141.48,7.0681]
[1724245272686,20.0,141.53,141.48,7.0681]
[1724245273174,20.0,141.54,141.48,7.0681]
[1724245273380,27.0655,141.54,141.48,7.0681]
[1724245274401,7.0656,141.53,141.48,7.0681]
[1724245274601,20.0,141.52,141.48,7.0681]
[1724245274796,16.6561,141.55,141.49,1.41339737]
[1724245275097,16.6561,141.55,141.49,14.86339737]
[1724245275297,16.6561,141.55,141.5,7.0671]
[1724245275474,16.6561,141.55,141.51,1.41317794]
[1724245275895,16.6561,141.55,141.5,8.48024041]
[1724245276101,7.0643,141.56,141.5,8.48024041]
[1724245276273,46.1563,141.58,141.51,8.47961592]
[1724245276274,20.0,141.55,141.51,8.47961592]
[1724245276482,20.0,141.56,141.52,8.6044969]
[1724245276676,22.1112,141.58,141.52,8.6044969]
[1724245278101,20.0,141.57,141.52,7.19149]
[1724245278999,27.0636,141.57,141.51,7.0664]
[1724245279706,20.0,141.57,141.5,17.667]
[1724245280098,7.0642,141.56,141.5,24.7337]
[1724245280408,27.0637,141.57,141.51,7.0665]
[1724245280581,27.0637,141.57,141.52,7.066]
[1724245282309,20.0,141.57,141.52,7.066]
[1724245282494,20.0,141.57,141.53,7.0656]
[1724245282896,15.0479,141.58,141.52,19.07805739]
[1724245283209,7.0617,141.61,141.55,7.0645]
[1724245283380,7.0617,141.61,141.55,8.4772285]
[1724245284683,20.0,141.6,141.55,8.4772285]
[1724245285287,23.1695,141.62,141.56,7.064]
[1724245285560,7.0602,141.64,141.58,7.0631]
[1724245285886,7.0602,141.64,141.58,8.47549499]
[1724245286579,7.0602,141.64,141.58,7.0631]
[1724245286805,7.0602,141.64,141.58,8.47547068]
[1724245287710,20.0,141.63,141.59,1.41237294]
[1724245288215,20.0,141.63,141.58,7.0631]
[1724245294331,15.9498,141.66,141.55,33.68549]
[1724245294332,7.0592,141.66,141.59,22.96695244]
[1724245294533,7.0592,141.66,141.6,7.18739]
[1724245294722,7.0592,141.66,141.61,1.41211106]
[1724245295120,7.0592,141.66,141.6,24.84239]
[1724245295918,7.0592,141.66,141.61,7.0616]
[1724245300420,7.0592,141.66,141.6,24.84249]
[1724245300626,20.0,141.65,141.57,17.6581]
[1724245300834,7.0609,141.63,141.57,24.7217]
[1724245301141,7.0602,141.64,141.58,7.0631]
[1724245301632,7.0602,141.64,141.59,7.0624]
[1724245303142,27.06,141.65,141.59,7.0624]
[1724245303442,7.0586,141.67,141.6,0.12549]
[1724245303641,7.0586,141.67,141.6,46.66294885]
[1724245303942,15.568,141.68,141.62,7.0607]
[1724245304147,22.6263,141.68,141.62,7.0607]
[1724245305114,7.0583,141.68,141.62,7.0607]
[1724245305316,20.0,141.67,141.62,7.0607]
[1724245309144,27.0587,141.67,141.62,7.0607]
[1724245309339,27.0587,141.67,141.61,24.7153]
[1724245310344,7.0592,141.66,141.61,17.6539]
[1724245310542,33.42,141.67,141.6,28.7334]
[1724245311550,7.0592,141.66,141.6,28.7334]
[1724245311748,7.0592,141.66,141.61,7.0615]
[1724245313726,40.4787,141.67,141.61,7.0615]
[1724245314727,40.4787,141.67,141.61,8.4735114]
[1724245315150,40.4787,141.67,141.61,7.0615]
[1724245315444,27.0587,141.67,141.62,1.41200813]
[1724245316551,27.0587,141.67,141.61,7.0615]
[1724245316851,27.0587,141.67,141.61,8.47350055]
[1724245317251,27.0587,141.67,141.61,7.0615]
[1724245318140,27.0587,141.67,141.61,8.473501]
[1724245318747,27.0587,141.67,141.62,0.12549]
[1724245319324,27.0587,141.67,141.62,1.53741386]
[1724245319728,27.0587,141.67,141.62,8.59841386]
[1724245320150,20.0,141.67,141.62,8.59841386]
[1724245320539,20.0,141.67,141.63,7.0605]
[1724245320944,20.0,141.67,141.64,1.41177658]
[1724245322258,7.0575,141.7,141.64,8.47175089]
[1724245322559,20.0,141.69,141.64,7.06]
[1724245322747,7.0575,141.7,141.65,7.18509]
[1724245323071,7.0577,141.69,141.64,24.7102]
[1724245323444,7.0577,141.69,141.64,17.6502]
[1724245326237,7.0583,141.68,141.62,7.0608]
[1724245326652,34.0126,141.71,141.61,17.653]
[1724245326653,7.0594,141.66,141.61,17.653]
[1724245326844,7.0594,141.66,141.61,24.7145]
[1724245327044,20.4788,141.67,141.61,24.7145]
[1724245327565,13.42,141.63,141.55,42.3669]
[1724245327767,16.3743,141.66,141.56,7.0637]
[1724245327768,13.42,141.61,141.56,7.0637]
[1724245327969,16.3743,141.66,141.55,31.1026]
[1724245327970,45.0,141.65,141.55,31.1026]
[1724245328143,45.0,141.65,141.52,48.7503]
[1724245328144,13.42,141.6,141.54,7.065]
[1724245328539,20.4832,141.58,141.51,42.7498]
[1724245328763,13.42,141.58,141.51,22.7498]
[1724245328967,13.42,141.59,141.51,22.7498]
[1724245329171,20.4826,141.59,141.52,7.0657]
[1724245329540,7.0632,141.58,141.52,7.0657]
[1724245329733,20.4832,141.58,141.52,7.0657]
[1724245329938,16.2028,141.6,141.48,22.4753]
[1724245329939,13.42,141.56,141.48,22.4753]
[1724245330168,17.6568,141.59,141.48,29.5429]
[1724245330336,65.12549,141.58,141.48,29.5429]
[1724245330743,65.0,141.58,141.49,7.0674]
[1724245331972,13.42,141.55,141.49,7.0674]
[1724245332171,13.42,141.55,141.5,0.12549]
[1724245332468,7.0644,141.56,141.5,0.12549]
[1724245333447,33.61,141.55,141.46,17.6724]
[1724245333970,43.1182,141.54,141.47,7.0686]
[1724245334283,36.053,141.54,141.46,17.6724]
[1724245334491,7.0666,141.51,141.43,17.6764]
[1724245334770,40.6766,141.51,141.44,7.07]
[1724245336370,7.0672,141.5,141.44,7.07]
[1724245336557,27.0679,141.49,141.43,17.6764]
[1724245336760,27.0679,141.49,141.43,24.7468]
[1724245336968,20.0,141.49,141.44,7.0699]
[1724245337170,20.0,141.53,141.44,7.0699]
[1724245337976,7.0667,141.51,141.44,7.0699]
[1724245338174,20.0,141.5,141.44,7.0699]
[1724245339476,20.0,141.5,141.45,7.0694]
[1724245342678,16.053,141.54,141.45,17.6732]
[1724245342990,16.053,141.54,141.47,24.7394]
[1724245343346,23.1185,141.54,141.48,7.068]
[1724245343550,16.053,141.54,141.47,17.6709]
[1724245343779,23.1182,141.54,141.48,7.068]
[1724245344053,7.0656,141.53,141.47,24.7394]
[1724245344693,20.0,141.52,141.47,24.7394]
[1724245345156,27.0663,141.52,141.47,17.6709]
[1724245345357,20.0,141.52,141.47,17.6709]
[1724245346551,20.0,141.52,141.48,7.0679]
[1724245346753,20.0,141.53,141.48,7.0679]
[1724245347951,20.0,141.53,141.5,7.067]
[1724245348155,16.053,141.54,141.5,7.067]
[1724245349682,16.053,141.54,141.49,24.7361]
[1724245349882,23.1181,141.54,141.48,7.068]
[1724245352565,40.5157,141.53,141.47,7.0685]
[1724245353276,40.5157,141.53,141.48,7.068]
[1724245353482,33.45,141.53,141.48,7.068]
[1724245353777,20.0,141.53,141.48,7.068]
[1724245355460,40.5156,141.53,141.48,7.068]
[1724245355657,7.0661,141.52,141.46,17.6721]
[1724245355866,40.5157,141.53,141.47,7.0684]
[1724245357080,7.0663,141.52,141.47,7.0684]
[1724245357277,7.0663,141.52,141.42,78.1646]
[1724245357278,13.45,141.49,141.43,17.6756]
[1724245357483,13.45,141.49,141.44,7.0698]
[1724245360389,7.0667,141.51,141.45,7.0692]
[1724245360588,20.0,141.5,141.45,7.0692]
[1724245361475,20.0,141.5,141.43,24.7457]
[1724245361680,7.0681,141.48,141.43,24.7457]
[1724245361906,22.2181,141.48,141.43,24.7457]
[1724245362210,55.8481,141.48,141.43,24.7457]
[1724245362508,22.2181,141.48,141.43,24.7457]
[1724245363412,15.15,141.48,141.43,24.7457]
[1724245365794,55.8481,141.48,141.43,17.6756]
[1724245365989,20.0,141.47,141.43,17.6756]
[1724245366190,20.0,141.47,141.39,6.3785]
[1724245366191,40.6992,141.46,141.4,24.7514]
[1724245366393,33.63,141.46,141.39,7.0725]
[1724245366597,20.0,141.45,141.41,7.0716]
[1724245367004,20.0,141.45,141.4,7.0719]
[1724245368277,27.0697,141.45,141.4,7.0719]
[1724245368482,27.0697,141.45,141.39,24.753]
[1724245368792,40.7002,141.44,141.39,24.753]
[1724245371507,33.63,141.44,141.39,24.753]
[1724245372117,40.7003,141.44,141.39,17.6807]
[1724245372920,40.7003,141.44,141.39,24.7532]
[1724245373089,33.63,141.41,141.32,35.3787]
[1724245373295,20.0,141.4,141.34,7.0746]
[1724245373510,7.0726,141.39,141.34,7.0746]
[1724245374115,27.0721,141.4,141.34,7.0746]
[1724245374916,27.0721,141.4,141.33,17.6882]
[1724245374917,20.0,141.4,141.35,7.0741]
[1724245375294,27.0721,141.4,141.35,7.0741]
[1724245375916,27.0721,141.4,141.34,7.075]
[1724245376411,27.0721,141.4,141.35,7.0745]
[1724245378324,20.0,141.4,141.35,7.0745]
[1724245379913,20.0,141.4,141.36,7.074]
[1724245380307,20.0,141.4,141.35,24.7607]
[1724245380815,27.0722,141.4,141.35,24.7607]
[1724245382307,20.0,141.4,141.36,1.41470684]
[1724245383195,29.8051,141.43,141.36,1.41470684]
[1724245383416,16.4037,141.43,141.37,17.80929]
[1724245383592,29.8737,141.43,141.38,7.073]
[1724245383791,29.8737,141.43,141.37,17.80929]
[1724245383993,36.9444,141.43,141.37,24.88249]
[1724245384413,23.4744,141.43,141.37,24.88249]
[1724245385104,23.4744,141.43,141.38,7.073]
[1724245387619,7.0712,141.42,141.37,24.7573]
[1724245387812,40.7412,141.42,141.37,24.7573]
[1724245388006,7.0719,141.41,141.35,7.0743]
[1724245388207,7.0717,141.41,141.35,7.0743]
[1724245389027,46.7937,141.4,141.34,24.762]
[1724245389624,46.7937,141.4,141.35,7.0746]
[1724245389822,46.7937,141.4,141.34,24.7619]
[1724245391523,6.0516,141.4,141.35,7.0745]
[1724245391910,7.0716,141.41,141.35,7.0745]
[1724245392223,20.0,141.4,141.35,7.0745]
[1724245392627,27.0722,141.4,141.35,7.0745]
[1724245393502,60.7422,141.4,141.35,7.0745]
[1724245394207,20.0,141.4,141.36,7.074]
[1724245394426,20.0,141.41,141.37,7.0736]
[1724245396623,20.0,141.41,141.36,17.6851]
[1724245396825,20.0,141.42,141.36,17.6851]
[1724245397130,20.0,141.42,141.37,7.0735]
[1724245397724,27.0712,141.42,141.37,7.0735]
[1724245400356,20.0,141.42,141.38,7.0728]
[1724245400723,22.6508,141.43,141.38,7.0728]
[1724245401142,22.6508,141.43,141.37,1.41442839]
[1724245401333,22.6508,141.43,141.39,7.0724]
[1724245401520,29.7215,141.43,141.38,17.6823]
[1724245402443,29.7215,141.43,141.38,24.7553]
[1724245405451,29.7215,141.43,141.38,17.6823]
[1724245406534,43.1915,141.43,141.38,17.6823]
[1724245406742,43.1915,141.43,141.38,24.7553]
[1724245406946,36.1208,141.43,141.38,24.7553]
[1724245407447,16.4037,141.43,141.39,7.0726]
[1724245410127,23.4743,141.43,141.38,24.7553]
[1724245410331,36.9443,141.43,141.38,24.7553]
[1724245419036,16.4037,141.43,141.38,17.6823]
[1724245419256,49.326479,141.47,141.4,17.6802]
[1724245419449,21.4194,141.47,141.43,7.0706]
[1724245419648,387.8,141.48,141.44,1.41393211]
[1724245419855,387.8,141.48,141.45,7.0695]
[1724245420161,387.8,141.48,141.45,8.48320347]
[1724245420345,22.5684,141.5,141.46,8.4826867]
[1724245420548,16.4996,141.5,141.46,8.4826867]
[1724245421462,16.4996,141.5,141.46,7.069]
[1724245421758,16.4996,141.5,141.46,8.48259463]
[1724245422073,16.4996,141.5,141.46,7.069]
[1724245423767,28.9609,141.54,141.46,17.6717]
[1724245424064,21.8954,141.54,141.47,1.66436847]
[1724245424565,21.8954,141.54,141.5,7.0671]
[1724245424566,15.4085,141.54,141.5,7.0671]
[1724245425363,15.4085,141.54,141.48,17.6694]
[1724245425364,15.4085,141.54,141.51,8.47982759]
[1724245425567,15.4085,141.54,141.51,7.0666]
[1724245425962,15.4085,141.54,141.5,7.0671]
[1724245426163,15.4085,141.54,141.51,1.41317607]
[1724245426469,15.4085,141.54,141.5,7.0671]
[1724245427448,15.4085,141.54,141.48,24.7372]
[1724245427648,22.4736,141.54,141.48,24.7372]
[1724245428244,22.4736,141.54,141.49,7.0676]
[1724245430775,15.4085,141.54,141.5,7.067]
[1724245431367,7.0642,141.56,141.51,1.41322262]
[1724245431673,20.0,141.55,141.5,7.067]
[1724245433662,20.0,141.55,141.51,8.47962398]
[1724245433872,20.0,141.56,141.51,8.47962398]
[1724245434055,20.0,141.56,141.52,1.41312011]
[1724245434567,16.0127,141.58,141.52,19.07802011]
[1724245434777,16.0127,141.58,141.54,7.0648]
[1724245434977,16.0127,141.58,141.53,7.0654]
[1724245435473,16.0127,141.58,141.53,8.47830859]
[1724245435778,7.0627,141.59,141.53,8.47830859]
[1724245435961,20.0,141.58,141.53,7.0654]
[1724245437079,27.0634,141.58,141.52,24.85649]
[1724245437255,27.0634,141.58,141.53,0.12549]
[1724245437784,7.0636,141.57,141.52,17.6649]
[1724245437988,7.0636,141.57,141.48,35.3405]
[1724245437989,7.0642,141.56,141.5,7.0668]
[1724245438180,7.065,141.55,141.49,17.6681]
[1724245438360,7.0642,141.56,141.51,7.0664]
[1724245438549,40.6838,141.57,141.51,7.0664]
[1724245438984,16.0263,141.64,141.53,53.62]
[1724245439282,7.0607,141.63,141.57,7.0636]
[1724245439461,7.0607,141.63,141.58,1.41243578]
[1724245439667,7.06,141.65,141.59,7.0625]
[1724245439966,7.06,141.65,141.59,8.47493331]
[1724245440584,7.0601,141.64,141.59,8.47493331]
[1724245440756,7.0601,141.64,141.59,7.0625]
[1724245441163,20.0,141.63,141.59,7.0625]
[1724245441774,20.0,141.63,141.58,7.063]
[1724245443484,27.0607,141.63,141.58,7.063]
[1724245443671,7.0611,141.62,141.57,17.6583]
[1724245446899,7.0616,141.61,141.56,7.0639]
[1724245447099,7.0612,141.62,141.56,7.0639]
[1724245447788,7.0616,141.61,141.56,7.0639]
[1724245448791,7.0639,141.57,141.51,24.7318]
[1724245449302,7.0639,141.57,141.52,7.0661]
[1724245450280,7.0639,141.57,141.51,24.732]
[1724245450501,7.0642,141.56,141.51,24.732]
[1724245451485,7.0637,141.57,141.51,24.732]
[1724245451686,7.0637,141.57,141.52,8.47905243]
[1724245453615,7.0627,141.59,141.53,7.31628]
[1724245453782,20.0,141.58,141.54,1.41272378]
[1724245454279,20.0,141.58,141.53,7.31628]
[1724245455105,20.0,141.58,141.54,8.4774478]
[1724245455294,20.0,141.59,141.55,8.60274526]
[1724245455494,20.0,141.59,141.55,8.47725526]
[1724245455695,20.0,141.6,141.55,8.47725526]
[1724245456010,20.0,141.6,141.56,0.12549]
[1724245456304,20.0,141.6,141.56,1.53807551]
[1724245458917,15.3215,141.62,141.56,8.60207551]
[1724245459111,15.3215,141.62,141.57,1.41249142]
[1724245459416,15.3215,141.62,141.56,7.18949]
[1724245459794,7.0617,141.61,141.56,7.18949]
[1724245460298,7.0622,141.6,141.55,24.7259]
[1724245460507,33.62,141.61,141.54,15.2754]
[1724245460695,7.0631,141.59,141.54,15.2754]
[1724245460894,7.0631,141.59,141.53,7.0655]
[1724245460895,7.0631,141.58,141.53,7.0655]
[1724245462324,7.0627,141.59,141.54,7.065]
[1724245464419,7.0623,141.6,141.54,7.065]
[1724245464606,7.0623,141.6,141.55,8.7282663]
[1724245464920,20.0,141.59,141.55,7.31548]
[1724245465424,20.0,141.6,141.55,7.31548]
[1724245466596,27.0622,141.6,141.55,7.18999]
[1724245467118,27.0622,141.6,141.55,0.12549]
[1724245467336,27.0622,141.6,141.54,24.7276]
[1724245467628,7.0626,141.59,141.54,24.7276]
[1724245471622,40.6826,141.59,141.54,24.7276]
[1724245472634,7.0626,141.59,141.54,24.7276]
[1724245473007,20.0,141.6,141.55,8.47718978]
[1724245473410,22.3828,141.62,141.56,17.78539]
[1724245473612,7.0613,141.62,141.57,1.41243071]
[1724245473812,7.0608,141.63,141.58,1.53789546]
[1724245474013,7.0608,141.63,141.58,1.41240546]
[1724245475034,7.0608,141.63,141.58,7.0631]
[1724245475244,20.0,141.62,141.58,8.47545093]
[1724245475903,20.0,141.62,141.58,7.0631]
[1724245476103,27.0611,141.62,141.57,7.0635]
[1724245476334,27.0611,141.62,141.58,1.41248179]
[1724245477735,20.0,141.62,141.58,1.41248179]
[1724245478620,20.0,141.62,141.59,0.12549]
[1724245478822,7.0602,141.64,141.59,0.12549]
[1724245478823,7.0602,141.64,141.59,1.53778637]
[1724245479130,20.0,141.63,141.59,1.53778637]
[1724245479505,20.0,141.63,141.59,8.60028637]
[1724245481048,40.99899082,141.67,141.6,24.7162]
[1724245481049,7.0595,141.66,141.6,24.7162]
[1724245481338,7.0595,141.66,141.61,1.53751174]
[1724245481339,27.0595,141.66,141.61,1.53751174]
[1724245482412,27.0595,141.66,141.61,0.12549]
[1724245482837,27.0595,141.66,141.61,7.18699]
[1724245484242,7.0596,141.65,141.61,0.12549]
[1724245484621,7.0602,141.64,141.59,7.0625]
[1724245484839,7.0602,141.64,141.6,0.12549]
[1724245485343,7.0602,141.64,141.6,1.53768995]
[1724245485923,7.0597,141.65,141.6,8.59968995]
[1724245488942,40.4793,141.66,141.6,8.59968995]
[1724245489853,40.4793,141.66,141.6,7.18749]
[1724245491466,40.4793,141.66,141.61,1.4120851]
[1724245492351,33.42,141.66,141.62,7.061]
[1724245492654,7.0587,141.67,141.63,1.41194779]
[1724245494039,13.42,141.68,141.63,1.41194779]
[1724245494040,20.4783,141.68,141.63,1.41194779]
[1724245494239,20.0,141.67,141.63,17.6513]
[1724245494754,13.42,141.66,141.62,7.0609]
[1724245496161,20.4792,141.66,141.61,28.5393]
[1724245496858,20.4792,141.66,141.61,13.3095]
[1724245497037,20.4792,141.66,141.61,7.0616]
[1724245497242,7.0598,141.65,141.6,24.84189]
[1724245497929,13.42,141.62,141.57,17.6581]
[1724245498555,33.58,141.63,141.57,17.6581]
[1724245498957,33.58,141.63,141.57,24.7215]
[1724245499253,20.0,141.62,141.55,13.6092]
[1724245499461,7.062,141.61,141.56,7.0641]
[1724245501865,27.0612,141.62,141.57,7.0635]
[1724245502546,7.0617,141.61,141.56,24.724]
[1724245504155,7.0617,141.61,141.56,17.66]
[1724245505272,7.0617,141.61,141.55,7.0644]
[1724245505273,7.0622,141.6,141.55,7.0644]
[1724245508274,7.0617,141.61,141.55,7.0644]
[1724245508572,20.0,141.6,141.56,1.53804202]
[1724245509878,20.0,141.62,141.57,7.0631]
[1724245510051,20.0,141.62,141.58,8.4755086]
[1724245510249,22.6401,141.63,141.58,8.4755086]
[1724245510460,7.0603,141.64,141.59,7.0624]
[1724245510664,7.0603,141.64,141.6,1.41226787]
[1724245511780,20.0,141.63,141.6,1.41226787]
[1724245512281,20.0,141.63,141.58,7.0629]
[1724245513547,27.0607,141.63,141.58,7.0629]
[1724245513753,7.0612,141.62,141.57,17.6589]
[1724245515381,20.0,141.61,141.57,17.6589]
[1724245520188,20.0,141.61,141.57,24.7224]
[1724245526693,20.0,141.61,141.58,7.0629]
[1724245526877,7.38022637,141.66,141.59,15.09336482]
[1724245527079,408.2885,141.68,141.62,7.0608]
[1724245527386,408.2885,141.68,141.63,1.41195833]
[1724245528082,7.059,141.67,141.61,24.7152]
[1724245528282,13.43,141.66,141.61,24.7152]
[1724245528682,20.4893,141.66,141.61,24.7152]
[1724245528888,13.43,141.66,141.61,24.7152]
[1724245529991,13.43,141.64,141.6,22.7032]
[1724245532401,7.0598,141.65,141.6,22.7032]
[1724245534104,20.4892,141.66,141.61,1.41221922]
[1724245534280,20.0,141.65,141.61,1.41221922]
[1724245534475,20.0,141.65,141.61,8.47371922]
[1724245534695,20.0,141.65,141.62,7.18649]
[1724245534878,20.0,141.66,141.63,7.0603]
[1724245535079,387.8,141.69,141.64,7.06]
[1724245535301,401.23,141.69,141.64,7.06]
[1724245536593,20.0,141.68,141.64,7.06]
[1724245537101,20.0,141.68,141.65,1.41179952]
[1724245537302,407.8,141.68,141.65,1.41179952]
[1724245537503,407.8,141.68,141.63,7.0604]
[1724245537689,407.8,141.68,141.64,0.12549]
[1724245537999,414.8581,141.68,141.64,0.12549]
[1724245538389,414.8581,141.68,141.62,31.23659]
[1724245538390,414.8581,141.68,141.63,7.31158]
[1724245540111,414.8581,141.68,141.63,7.18609]
[1724245540683,13.43,141.67,141.63,7.18609]
[1724245541686,20.489,141.67,141.62,17.652]
[1724245542308,7.0591,141.66,141.62,17.652]
[1724245542902,20.4888,141.67,141.63,1.41201813]
[1724245543605,20.4888,141.67,141.62,24.713]
[1724245545518,13.43,141.65,141.6,22.7031]
[1724245545717,7.0592,141.66,141.61,7.0612]
[1724245545718,13.43,141.66,141.61,7.0612]
[1724245546726,7.0589,141.67,141.61,7.0612]
[1724245546931,20.0,141.66,141.61,7.0612]
[1724245547103,20.0,141.66,141.62,1.53749441]
[1724245547300,20.0,141.66,141.62,8.59859441]
[1724245547614,20.0,141.66,141.62,7.18659]
[1724245548523,387.8,141.68,141.64,7.0601]
[1724245548714,387.8,141.68,141.65,8.47091975]
[1724245549325,387.8,141.68,141.63,31.09989]
[1724245549506,387.8,141.68,141.64,0.12549]
[1724245550120,387.8,141.68,141.65,7.0592]
[1724245550309,22.2869,141.73,141.67,7.0582]
[1724245550626,13.43,141.74,141.69,7.0575]
[1724245550807,13.43,141.74,141.68,1.66230734]
[1724245550808,20.4851,141.74,141.68,8.59481734]
[1724245551009,7.0558,141.73,141.68,0.12549]
[1724245551724,7.0558,141.73,141.68,1.53688466]
[1724245551914,7.0558,141.73,141.68,0.12549]
[1724245554637,20.4852,141.74,141.68,14.74026216]
[1724245554843,20.0,141.73,141.68,14.74026216]
[1724245555699,20.0,141.73,141.68,13.32888]
[1724245556104,20.0,141.73,141.69,26.11197055]
[1724245556531,20.0,141.73,141.69,17.6431]
[1724245559128,27.0556,141.73,141.69,17.6431]
[1724245559339,27.0556,141.73,141.68,6.27088]
[1724245560638,27.0556,141.73,141.69,1.41131373]
[1724245562335,20.0,141.73,141.69,1.41131373]
[1724245562532,27.055,141.75,141.7,0.25098]
[1724245562931,7.0551,141.74,141.7,0.25098]
[1724245563126,20.4851,141.74,141.68,30.7227]
[1724245563435,7.0557,141.73,141.68,30.7227]
[1724245563642,20.4853,141.74,141.69,0.25098]
[1724245564839,20.4853,141.74,141.69,1.66218415]
[1724245565639,27.0546,141.75,141.7,7.057]
[1724245565849,27.0546,141.75,141.71,0.25098]
[1724245566352,7.054,141.77,141.72,21.4896]
[1724245566512,7.054,141.77,141.73,1.53635414]
[1724245567539,3.19744646,141.79,141.74,1.4108789]
[1724245567736,8.21430591,141.81,141.75,0.12549]
[1724245567921,13.43,141.8,141.75,0.12549]
[1724245568123,20.4836,141.78,141.73,7.18109]
[1724245568619,13.43,141.78,141.73,0.12549]
[1724245568823,13.43,141.76,141.72,21.4896]
[1724245569125,7.0538,141.77,141.73,0.12549]
[1724245569338,7.0532,141.78,141.73,7.18109]
[1724245569912,7.0532,141.78,141.73,0.12549]
[1724245570219,7.0532,141.78,141.73,0.25098]
[1724245571145,7.0537,141.77,141.73,0.25098]
[1724245572242,18.4710463,141.81,141.75,21.929]
[1724245572243,0.8414463,141.81,141.75,21.929]
[1724245572448,7.8934463,141.81,141.76,1.66152788]
[1724245572640,7.0522,141.8,141.76,1.66152788]
[1724245572834,7.0522,141.8,141.76,0.12549]
[1724245573341,0.8414463,141.81,141.75,21.929]
[1724245573547,13.43,141.78,141.75,21.929]
[1724245574145,7.0527,141.79,141.75,21.929]
[1724245574443,7.8935463,141.81,141.76,1.41071508]
[1724245574653,21.3235463,141.81,141.76,1.41071508]
[1724245575733,21.3235463,141.81,141.75,28.9836]
[1724245575938,21.3235463,141.81,141.76,0.12549]
[1724245576454,21.3235463,141.81,141.76,1.53607668]
[1724245576961,21.3235463,141.81,141.76,8.59007668]
[1724245577634,21.3235463,141.81,141.76,7.17949]
[1724245578374,21.3235463,141.81,141.77,1.41054777]
[1724245579361,21.3235463,141.81,141.76,7.17949]
[1724245579659,21.3235463,141.81,141.76,0.12549]
[1724245579959,13.43,141.77,141.72,41.2429]
[1724245580265,13.43,141.77,141.73,8.466447]
[1724245580553,13.43,141.77,141.73,7.0555]
[1724245583150,13.43,141.78,141.74,0.12549]
[1724245583348,13.43,141.78,141.74,0.25098]
[1724245583558,13.43,141.78,141.74,0.12549]
[1724245584057,13.43,141.78,141.74,0.25098]
[1724245584671,13.43,141.78,141.72,34.1868]
[1724245584965,0.8414463,141.81,141.69,15.4872]
[1724245584966,20.4853,141.74,141.69,15.4872]
[1724245585149,13.43,141.72,141.69,15.4872]
[1724245585543,13.43,141.72,141.67,13.6035]
[1724245585739,20.4864,141.72,141.67,6.545]
[1724245585963,13.43,141.7,141.67,6.545]
[1724245586541,13.43,141.7,141.67,13.6036]
[1724245588547,7.0564,141.72,141.67,13.6036]
[1724245588875,20.4864,141.72,141.67,13.6036]